[Event "Late-Titled-Tuesday-Blitz-February-20-2024"]
[Site "Chess.com"]
[Date "2024.02.20"]
[Round "6"]
[White "BogdanDeac"]
[Black "mbojan"]
[Result "0-1"]
[WhiteElo "3037"]
[BlackElo "2900"]
[TimeControl "180+1"]
[EndTime "15:07:18 PST"]
[Termination "mbojan won by resignation"]

1. d4 {[%clk 0:03:00.9]} 1... g6 {[%clk 0:03:00.3]} 2. e4 {[%clk 0:02:58.7]}
2... Nf6 {[%clk 0:03:00.4]} 3. e5 {[%clk 0:02:56.1]} 3... Nh5 {[%clk 0:03:00.6]}
4. Nf3 {[%clk 0:02:44.5]} 4... d6 {[%clk 0:03:00.8]} 5. Bc4 {[%clk 0:02:44.7]}
5... Nc6 {[%clk 0:03:00.7]} 6. O-O {[%clk 0:02:23.5]} 6... dxe5 {[%clk
0:02:25.7]} 7. d5 {[%clk 0:01:58.9]} 7... Nb8 {[%clk 0:02:25.7]} 8. Nxe5 {[%clk
0:01:53.9]} 8... Bg7 {[%clk 0:02:26]} 9. Qe2 {[%clk 0:01:45.2]} 9... O-O {[%clk
0:02:26]} 10. Rd1 {[%clk 0:01:41.4]} 10... Nd7 {[%clk 0:02:23.6]} 11. Nf3 {[%clk
0:01:39.7]} 11... Nb6 {[%clk 0:02:01.3]} 12. Bb3 {[%clk 0:01:38.8]} 12... a5
{[%clk 0:02:01.9]} 13. a4 {[%clk 0:01:37.9]} 13... Bg4 {[%clk 0:02:01.8]} 14. h3
{[%clk 0:01:29.1]} 14... Bxf3 {[%clk 0:01:59.6]} 15. Qxf3 {[%clk 0:01:30]} 15...
Nf6 {[%clk 0:01:59.4]} 16. Nc3 {[%clk 0:01:28.1]} 16... Qd7 {[%clk 0:01:50.6]}
17. Be3 {[%clk 0:01:10.9]} 17... Rad8 {[%clk 0:01:50.3]} 18. Rd3 {[%clk
0:00:48.1]} 18... Qc8 {[%clk 0:01:42.6]} 19. Re1 {[%clk 0:00:43.2]} 19... Rfe8
{[%clk 0:01:33]} 20. Bc5 {[%clk 0:00:30.6]} 20... Rd7 {[%clk 0:01:00.7]} 21.
Ree3 {[%clk 0:00:23.8]} 21... Qd8 {[%clk 0:00:57.2]} 22. g3 {[%clk 0:00:17.2]}
22... h5 {[%clk 0:00:56.6]} 23. Kg2 {[%clk 0:00:15.9]} 23... Nc8 {[%clk
0:00:56.9]} 24. Bd4 {[%clk 0:00:10.4]} 24... Nd6 {[%clk 0:00:55.2]} 25. Be5
{[%clk 0:00:10.6]} 25... Nh7 {[%clk 0:00:46.7]} 26. Bxg7 {[%clk 0:00:09.9]}
26... Kxg7 {[%clk 0:00:47.6]} 27. Qf4 {[%clk 0:00:10.2]} 27... Nf6 {[%clk
0:00:46.3]} 28. Re2 {[%clk 0:00:09.5]} 28... c6 {[%clk 0:00:40.2]} 29. dxc6
{[%clk 0:00:06.3]} 29... bxc6 {[%clk 0:00:41.1]} 30. Qf3 {[%clk 0:00:05.6]}
30... Nf5 {[%clk 0:00:39.4]} 31. Red2 {[%clk 0:00:04.3]} 31... Rxd3 {[%clk
0:00:39.4]} 32. Rxd3 {[%clk 0:00:04.2]} 32... Qc7 {[%clk 0:00:40.1]} 33. Ne4
{[%clk 0:00:04.5]} 33... Nxe4 {[%clk 0:00:23.2]} 34. Qxe4 {[%clk 0:00:05.4]}
34... e6 {[%clk 0:00:23.7]} 35. Rd2 {[%clk 0:00:04.6]} 35... c5 {[%clk
0:00:23.7]} 36. Bc4 {[%clk 0:00:04.4]} 36... Kg8 {[%clk 0:00:17.8]} 37. Bb5
{[%clk 0:00:04.1]} 37... Rd8 {[%clk 0:00:18.2]} 38. Rxd8+ {[%clk 0:00:04]} 38...
Qxd8 {[%clk 0:00:19.1]} 39. Qe5 {[%clk 0:00:04.2]} 39... Qe7 {[%clk 0:00:05.6]}
40. c3 {[%clk 0:00:03.9]} 40... Qa7 {[%clk 0:00:04.8]} 41. Kg1 {[%clk
0:00:03.9]} 41... Kf8 {[%clk 0:00:03.2]} 42. Qh8+ {[%clk 0:00:03.7]} 42... Ke7
{[%clk 0:00:03.8]} 43. Qe5 {[%clk 0:00:04.2]} 43... Qb6 {[%clk 0:00:03.6]} 44.
g4 {[%clk 0:00:04.1]} 44... hxg4 {[%clk 0:00:03.5]} 45. hxg4 {[%clk 0:00:05]}
45... Nd6 {[%clk 0:00:04.3]} 46. c4 {[%clk 0:00:05.1]} 46... Qc7 {[%clk
0:00:04.6]} 47. Qg5+ {[%clk 0:00:05.2]} 47... Kf8 {[%clk 0:00:04.4]} 48. Qh6+
{[%clk 0:00:05.4]} 48... Ke7 {[%clk 0:00:05]} 49. Qg5+ {[%clk 0:00:05.8]} 49...
Kf8 {[%clk 0:00:05.5]} 50. Qf6 {[%clk 0:00:06.3]} 50... Ne4 {[%clk 0:00:04.8]}
51. Qh8+ {[%clk 0:00:06.4]} 51... Ke7 {[%clk 0:00:05.5]} 52. Kg2 {[%clk
0:00:06.5]} 52... Qf4 {[%clk 0:00:05.8]} 53. f3 {[%clk 0:00:05.2]} 53... Qd2+
{[%clk 0:00:05.6]} 54. Kh3 {[%clk 0:00:04.6]} 54... Ng5+ {[%clk 0:00:03.6]} 55.
Kg3 {[%clk 0:00:04.7]} 55... Qe1+ {[%clk 0:00:03.7]} 56. Kf4 {[%clk 0:00:04.2]}
56... Qd2+ {[%clk 0:00:03.9]} 57. Kg3 {[%clk 0:00:04.6]} 57... Qe1+ {[%clk
0:00:03.9]} 58. Kf4 {[%clk 0:00:04.9]} 58... Qc1+ {[%clk 0:00:04.6]} 59. Kg3
{[%clk 0:00:04.8]} 59... Qe3 {[%clk 0:00:03.5]} 60. Qd8+ {[%clk 0:00:04.3]}
60... Kxd8 {[%clk 0:00:03.5]} 0-1

[Event "Late-Titled-Tuesday-Blitz-February-20-2024"]
[Site "Chess.com"]
[Date "2024.02.20"]
[Round "6"]
[White "TigrVShlyape"]
[Black "Mikasinski"]
[Result "1-0"]
[WhiteElo "2927"]
[BlackElo "2679"]
[TimeControl "180+1"]
[EndTime "15:07:21 PST"]
[Termination "TigrVShlyape won on time"]

1. e4 {[%clk 0:03:00.9]} 1... c5 {[%clk 0:02:59.6]} 2. Nf3 {[%clk 0:02:57.4]}
2... d6 {[%clk 0:03:00]} 3. d4 {[%clk 0:02:56.6]} 3... cxd4 {[%clk 0:03:00.5]}
4. Nxd4 {[%clk 0:02:56.2]} 4... Nf6 {[%clk 0:03:01.1]} 5. Nc3 {[%clk 0:02:55.5]}
5... g6 {[%clk 0:03:01.5]} 6. Be2 {[%clk 0:02:51.7]} 6... Nc6 {[%clk 0:03:00.5]}
7. Be3 {[%clk 0:02:50.8]} 7... Bg7 {[%clk 0:03:00.3]} 8. O-O {[%clk 0:02:51.1]}
8... O-O {[%clk 0:03:00.4]} 9. Qd2 {[%clk 0:02:51.5]} 9... Ng4 {[%clk
0:02:59.1]} 10. Bxg4 {[%clk 0:02:51]} 10... Bxg4 {[%clk 0:02:57.6]} 11. a4
{[%clk 0:02:44]} 11... Rc8 {[%clk 0:02:54.1]} 12. f3 {[%clk 0:02:41.4]} 12...
Bd7 {[%clk 0:02:53.8]} 13. Rfc1 {[%clk 0:02:29.7]} 13... Re8 {[%clk 0:02:41.9]}
14. Nde2 {[%clk 0:02:17.2]} 14... Qa5 {[%clk 0:02:37.8]} 15. Nd1 {[%clk
0:01:27]} 15... Qa6 {[%clk 0:02:29.7]} 16. Ra3 {[%clk 0:01:07.8]} 16... Red8
{[%clk 0:01:58]} 17. c4 {[%clk 0:01:05.5]} 17... Be6 {[%clk 0:01:43.8]} 18. b3
{[%clk 0:01:03.3]} 18... b6 {[%clk 0:01:31.8]} 19. Ndc3 {[%clk 0:00:55.1]} 19...
Ne5 {[%clk 0:01:26.7]} 20. Ra2 {[%clk 0:00:50.8]} 20... Qb7 {[%clk 0:01:22.5]}
21. Nf4 {[%clk 0:00:42.8]} 21... Bxc4 {[%clk 0:00:49]} 22. bxc4 {[%clk
0:00:41.3]} 22... Nxc4 {[%clk 0:00:49.5]} 23. Qe1 {[%clk 0:00:36.2]} 23... e6
{[%clk 0:00:45.8]} 24. Bf2 {[%clk 0:00:28]} 24... Bh6 {[%clk 0:00:44.2]} 25.
Nce2 {[%clk 0:00:18.5]} 25... Ne5 {[%clk 0:00:39.1]} 26. Rac2 {[%clk 0:00:16.9]}
26... Rxc2 {[%clk 0:00:32.7]} 27. Rxc2 {[%clk 0:00:17.1]} 27... Qa6 {[%clk
0:00:29.4]} 28. Qb4 {[%clk 0:00:15.4]} 28... Nd3 {[%clk 0:00:20.2]} 29. Nxd3
{[%clk 0:00:14.6]} 29... Qxd3 {[%clk 0:00:20.6]} 30. Qb1 {[%clk 0:00:14.1]}
30... d5 {[%clk 0:00:17.1]} 31. exd5 {[%clk 0:00:14.2]} 31... Qxd5 {[%clk
0:00:17.5]} 32. h4 {[%clk 0:00:13.4]} 32... Qd7 {[%clk 0:00:16.1]} 33. Nc3
{[%clk 0:00:10.7]} 33... Bg7 {[%clk 0:00:11.7]} 34. Nb5 {[%clk 0:00:10.2]} 34...
h5 {[%clk 0:00:10.3]} 35. Re2 {[%clk 0:00:09.2]} 35... Bf6 {[%clk 0:00:07.6]}
36. Qb3 {[%clk 0:00:08]} 36... a6 {[%clk 0:00:07.8]} 37. Na3 {[%clk 0:00:07.5]}
37... b5 {[%clk 0:00:06.8]} 38. axb5 {[%clk 0:00:07.4]} 38... axb5 {[%clk
0:00:07.4]} 39. Qxb5 {[%clk 0:00:06.2]} 39... Qd1+ {[%clk 0:00:06.1]} 40. Re1
{[%clk 0:00:06.4]} 40... Qd2 {[%clk 0:00:04.5]} 41. Qe2 {[%clk 0:00:05.9]} 41...
Qb4 {[%clk 0:00:04.4]} 42. Nc4 {[%clk 0:00:05.8]} 42... Bc3 {[%clk 0:00:02.7]}
43. Rc1 {[%clk 0:00:05.6]} 43... Bf6 {[%clk 0:00:02.7]} 44. Ne5 {[%clk
0:00:04.9]} 44... Kg7 {[%clk 0:00:02]} 45. Nc6 {[%clk 0:00:04.5]} 45... Qf4
{[%clk 0:00:01.3]} 46. Rd1 {[%clk 0:00:02.9]} 46... Rxd1+ {[%clk 0:00:01.3]} 47.
Qxd1 {[%clk 0:00:03.3]} 47... Bxh4 {[%clk 0:00:02.2]} 48. Bxh4 {[%clk
0:00:03.7]} 48... Qxh4 {[%clk 0:00:02.4]} 49. Qd4+ {[%clk 0:00:04.3]} 49...
Qxd4+ {[%clk 0:00:02.5]} 50. Nxd4 {[%clk 0:00:05.2]} 50... Kf6 {[%clk
0:00:03.3]} 51. Kf2 {[%clk 0:00:05.6]} 51... Ke5 {[%clk 0:00:03.9]} 52. Ne2
{[%clk 0:00:06.5]} 52... h4 {[%clk 0:00:04.1]} 53. Ke3 {[%clk 0:00:06.6]} 53...
g5 {[%clk 0:00:04.3]} 54. f4+ {[%clk 0:00:07.1]} 54... gxf4+ {[%clk 0:00:03.1]}
55. Nxf4 {[%clk 0:00:07.7]} 55... Kf5 {[%clk 0:00:04]} 56. Kf3 {[%clk
0:00:08.1]} 56... e5 {[%clk 0:00:04.4]} 57. Nd5 {[%clk 0:00:08.6]} 57... e4+
{[%clk 0:00:01.5]} 58. Ke3 {[%clk 0:00:09.1]} 58... Ke5 {[%clk 0:00:02]} 59. Nf4
{[%clk 0:00:09.4]} 59... Kf5 {[%clk 0:00:02.2]} 60. Nh3 {[%clk 0:00:09.2]} 60...
Kg4 {[%clk 0:00:02.1]} 61. Kf2 {[%clk 0:00:08.3]} 61... e3+ {[%clk 0:00:00.6]}
62. Kxe3 {[%clk 0:00:08.4]} 1-0

[Event "Late-Titled-Tuesday-Blitz-February-20-2024"]
[Site "Chess.com"]
[Date "2024.02.20"]
[Round "6"]
[White "czasnaszachy"]
[Black "krzyzan94"]
[Result "1/2-1/2"]
[WhiteElo "2447"]
[BlackElo "2771"]
[TimeControl "180+1"]
[EndTime "15:07:21 PST"]
[Termination "Game drawn - insufficient material"]

1. d4 {[%clk 0:03:00.9]} 1... Nf6 {[%clk 0:02:56.6]} 2. c4 {[%clk 0:03:00.7]}
2... e6 {[%clk 0:02:53.3]} 3. Nf3 {[%clk 0:02:59.6]} 3... Bb4+ {[%clk 0:02:52]}
4. Bd2 {[%clk 0:02:58.2]} 4... Qe7 {[%clk 0:02:49.9]} 5. g3 {[%clk 0:02:57.5]}
5... Nc6 {[%clk 0:02:45.8]} 6. Nc3 {[%clk 0:02:56.6]} 6... d5 {[%clk 0:02:36.8]}
7. cxd5 {[%clk 0:02:47.6]} 7... exd5 {[%clk 0:02:37.7]} 8. Bg2 {[%clk
0:02:46.7]} 8... Bg4 {[%clk 0:02:28.2]} 9. Bg5 {[%clk 0:02:10.1]} 9... h6 {[%clk
0:02:18.1]} 10. Bxf6 {[%clk 0:02:09.5]} 10... Qxf6 {[%clk 0:02:19]} 11. e3
{[%clk 0:01:59.8]} 11... O-O {[%clk 0:02:09]} 12. O-O {[%clk 0:01:56.4]} 12...
Bxc3 {[%clk 0:01:56.6]} 13. bxc3 {[%clk 0:01:55.9]} 13... Na5 {[%clk 0:01:51.6]}
14. h3 {[%clk 0:01:52.7]} 14... Bxf3 {[%clk 0:01:50.4]} 15. Qxf3 {[%clk
0:01:50.4]} 15... Qxf3 {[%clk 0:01:50.3]} 16. Bxf3 {[%clk 0:01:50.9]} 16... c6
{[%clk 0:01:51.2]} 17. Rab1 {[%clk 0:01:49.6]} 17... Rfe8 {[%clk 0:01:51.1]} 18.
Be2 {[%clk 0:01:48.9]} 18... Kf8 {[%clk 0:01:50.2]} 19. Rfc1 {[%clk 0:01:46.5]}
19... b5 {[%clk 0:01:46.6]} 20. Bd3 {[%clk 0:01:39.1]} 20... a6 {[%clk
0:01:43.3]} 21. Re1 {[%clk 0:01:32.9]} 21... Re6 {[%clk 0:01:33]} 22. e4 {[%clk
0:01:31.3]} 22... dxe4 {[%clk 0:01:33.1]} 23. Rxe4 {[%clk 0:01:30]} 23... Rae8
{[%clk 0:01:25.3]} 24. Rxe6 {[%clk 0:01:23.8]} 24... Rxe6 {[%clk 0:01:25]} 25.
Kf1 {[%clk 0:01:23.6]} 25... Ke7 {[%clk 0:01:23.9]} 26. a4 {[%clk 0:01:20.5]}
26... Kd6 {[%clk 0:01:17.6]} 27. axb5 {[%clk 0:01:18.8]} 27... axb5 {[%clk
0:01:17.9]} 28. Ra1 {[%clk 0:01:10.8]} 28... Nb3 {[%clk 0:01:16.6]} 29. Ra7
{[%clk 0:01:09.5]} 29... Re7 {[%clk 0:01:04.4]} 30. Ra8 {[%clk 0:01:08.8]} 30...
b4 {[%clk 0:00:58.9]} 31. cxb4 {[%clk 0:01:00.4]} 31... Nxd4 {[%clk 0:00:59]}
32. Kg2 {[%clk 0:00:58.3]} 32... Ne6 {[%clk 0:00:50.8]} 33. b5 {[%clk
0:00:53.2]} 33... Nc5 {[%clk 0:00:42.6]} 34. Bf1 {[%clk 0:00:49.3]} 34... cxb5
{[%clk 0:00:42.7]} 35. Bxb5 {[%clk 0:00:48.8]} 35... Ne4 {[%clk 0:00:37.5]} 36.
Be2 {[%clk 0:00:37.7]} 36... Rc7 {[%clk 0:00:32.9]} 37. Bf3 {[%clk 0:00:37]}
37... Nc3 {[%clk 0:00:23.8]} 38. Re8 {[%clk 0:00:34.3]} 38... Nb5 {[%clk
0:00:21.6]} 39. h4 {[%clk 0:00:31.7]} 39... Re7 {[%clk 0:00:13.9]} 40. Rb8
{[%clk 0:00:29.9]} 40... Nc7 {[%clk 0:00:12.8]} 41. Rd8+ {[%clk 0:00:29.1]}
41... Ke5 {[%clk 0:00:12.1]} 42. h5 {[%clk 0:00:26.9]} 42... Ne6 {[%clk
0:00:10.9]} 43. Rg8 {[%clk 0:00:24.8]} 43... Kf6 {[%clk 0:00:10.6]} 44. Ra8
{[%clk 0:00:24.2]} 44... Rc7 {[%clk 0:00:10.5]} 45. Rb8 {[%clk 0:00:23.9]} 45...
Rc2 {[%clk 0:00:09.9]} 46. Rb6 {[%clk 0:00:23.2]} 46... Rd2 {[%clk 0:00:08.6]}
47. Bg4 {[%clk 0:00:22.4]} 47... Rd5 {[%clk 0:00:05.9]} 48. Bxe6 {[%clk
0:00:22.3]} 48... fxe6 {[%clk 0:00:06.8]} 49. g4 {[%clk 0:00:21.2]} 49... Rd3
{[%clk 0:00:06.3]} 50. f3 {[%clk 0:00:20.8]} 50... Rc3 {[%clk 0:00:05.8]} 51.
Kg3 {[%clk 0:00:20.3]} 51... Ra3 {[%clk 0:00:05.7]} 52. Rc6 {[%clk 0:00:20.1]}
52... Ra7 {[%clk 0:00:05.6]} 53. Rb6 {[%clk 0:00:20.2]} 53... Kf7 {[%clk
0:00:05.9]} 54. Rc6 {[%clk 0:00:20.3]} 54... Rd7 {[%clk 0:00:05.4]} 55. Rb6
{[%clk 0:00:20.5]} 55... e5 {[%clk 0:00:05.4]} 56. Rc6 {[%clk 0:00:20.2]} 56...
Rd3 {[%clk 0:00:05.2]} 57. Kf2 {[%clk 0:00:19.9]} 57... Ra3 {[%clk 0:00:04.3]}
58. Ke2 {[%clk 0:00:20.1]} 58... Ra4 {[%clk 0:00:04]} 59. Rb6 {[%clk 0:00:19.8]}
59... Rd4 {[%clk 0:00:03.6]} 60. Rc6 {[%clk 0:00:19.8]} 60... Ra4 {[%clk
0:00:03]} 61. Rb6 {[%clk 0:00:20.1]} 61... e4 {[%clk 0:00:03.6]} 62. f4 {[%clk
0:00:19.6]} 62... Rc4 {[%clk 0:00:02.9]} 63. Ke3 {[%clk 0:00:19.8]} 63... Ra4
{[%clk 0:00:03.2]} 64. Rc6 {[%clk 0:00:19.9]} 64... Rb4 {[%clk 0:00:03.1]} 65.
g5 {[%clk 0:00:19.9]} 65... hxg5 {[%clk 0:00:02.9]} 66. fxg5 {[%clk 0:00:20.2]}
66... Rb5 {[%clk 0:00:03.1]} 67. h6 {[%clk 0:00:19.7]} 67... gxh6 {[%clk
0:00:03]} 68. gxh6 {[%clk 0:00:20]} 68... Rh5 {[%clk 0:00:03.5]} 69. Kxe4 {[%clk
0:00:19.6]} 69... Kg8 {[%clk 0:00:03.8]} 70. Kf4 {[%clk 0:00:19.6]} 70... Kh7
{[%clk 0:00:04.2]} 71. Kg4 {[%clk 0:00:19.8]} 71... Rxh6 {[%clk 0:00:04.6]} 72.
Rxh6+ {[%clk 0:00:19.7]} 72... Kxh6 {[%clk 0:00:05.5]} 1/2-1/2

[Event "Late-Titled-Tuesday-Blitz-February-20-2024"]
[Site "Chess.com"]
[Date "2024.02.20"]
[Round "6"]
[White "alexrustemov"]
[Black "laziestwin"]
[Result "1-0"]
[WhiteElo "2873"]
[BlackElo "2561"]
[TimeControl "180+1"]
[EndTime "15:07:31 PST"]
[Termination "alexrustemov won by resignation"]

1. d4 {[%clk 0:03:00.9]} 1... Nf6 {[%clk 0:02:59]} 2. c4 {[%clk 0:03:01.3]} 2...
e6 {[%clk 0:02:58.4]} 3. Nf3 {[%clk 0:03:01.9]} 3... d5 {[%clk 0:02:57.2]} 4.
Nc3 {[%clk 0:03:02.1]} 4... dxc4 {[%clk 0:02:55.3]} 5. e4 {[%clk 0:03:02]} 5...
b5 {[%clk 0:02:55.7]} 6. e5 {[%clk 0:03:01.5]} 6... Nfd7 {[%clk 0:02:56.4]} 7.
Nxb5 {[%clk 0:03:00.8]} 7... Nb6 {[%clk 0:02:57.1]} 8. Be2 {[%clk 0:02:59.3]}
8... Be7 {[%clk 0:02:55]} 9. Be3 {[%clk 0:02:56]} 9... O-O {[%clk 0:02:51.7]}
10. Qc2 {[%clk 0:02:50.2]} 10... Qd7 {[%clk 0:02:51.2]} 11. Nc3 {[%clk
0:02:49.5]} 11... Nc6 {[%clk 0:02:50.5]} 12. a3 {[%clk 0:02:48.1]} 12... Bb7
{[%clk 0:02:25.8]} 13. Rd1 {[%clk 0:02:46.8]} 13... f5 {[%clk 0:02:10]} 14. exf6
{[%clk 0:02:45.1]} 14... Bxf6 {[%clk 0:02:09.6]} 15. Ne4 {[%clk 0:02:41.1]}
15... Ne7 {[%clk 0:01:56.6]} 16. Nc5 {[%clk 0:02:31.4]} 16... Qd5 {[%clk
0:01:39.7]} 17. O-O {[%clk 0:02:21.7]} 17... Bc6 {[%clk 0:01:27.5]} 18. Ne1
{[%clk 0:02:02.7]} 18... Rae8 {[%clk 0:00:46.2]} 19. Bf3 {[%clk 0:02:00.2]}
19... Qf5 {[%clk 0:00:46.1]} 20. Qxf5 {[%clk 0:01:43.7]} 20... exf5 {[%clk
0:00:47]} 21. Ne6 {[%clk 0:01:35.9]} 21... Rf7 {[%clk 0:00:46]} 22. Nxc7 {[%clk
0:01:35.9]} 22... Bxf3 {[%clk 0:00:36]} 23. Nxf3 {[%clk 0:01:35.4]} 23... Rc8
{[%clk 0:00:36.7]} 24. Ne6 {[%clk 0:01:22.9]} 24... Ned5 {[%clk 0:00:36.2]} 25.
Rfe1 {[%clk 0:01:08.3]} 25... Na4 {[%clk 0:00:27.5]} 26. Rd2 {[%clk 0:01:05.8]}
26... Rb7 {[%clk 0:00:24.5]} 27. Ree2 {[%clk 0:00:57.2]} 27... h6 {[%clk
0:00:18.3]} 28. g3 {[%clk 0:00:56.9]} 28... g5 {[%clk 0:00:18]} 29. Nc5 {[%clk
0:00:55.5]} 29... Nxc5 {[%clk 0:00:16]} 30. dxc5 {[%clk 0:00:56.4]} 30... Nxe3
{[%clk 0:00:15.3]} 31. fxe3 {[%clk 0:00:51.4]} 31... Rxc5 {[%clk 0:00:15.3]} 32.
Rc2 {[%clk 0:00:50.7]} 32... Kf7 {[%clk 0:00:10.3]} 33. Kf2 {[%clk 0:00:50.4]}
33... Rb3 {[%clk 0:00:05.2]} 34. Nd4 {[%clk 0:00:47.8]} 34... Rd3 {[%clk
0:00:03.8]} 35. Red2 {[%clk 0:00:43.8]} 35... Rxd2+ {[%clk 0:00:03.6]} 36. Rxd2
{[%clk 0:00:43.9]} 36... Kg6 {[%clk 0:00:03]} 37. Rc2 {[%clk 0:00:43.3]} 37...
f4 {[%clk 0:00:02]} 38. gxf4 {[%clk 0:00:39.7]} 38... gxf4 {[%clk 0:00:02.9]}
39. Ne2 {[%clk 0:00:35.3]} 39... fxe3+ {[%clk 0:00:03]} 40. Kxe3 {[%clk
0:00:36]} 40... Rb5 {[%clk 0:00:03.2]} 41. Nc3 {[%clk 0:00:34.6]} 41... Rb3
{[%clk 0:00:03.3]} 42. a4 {[%clk 0:00:30.2]} 42... Kf5 {[%clk 0:00:02.9]} 43. h3
{[%clk 0:00:26.8]} 43... Be5 {[%clk 0:00:01.5]} 44. Rf2+ {[%clk 0:00:25.7]}
44... Ke6 {[%clk 0:00:01.4]} 45. Rc2 {[%clk 0:00:23.5]} 45... a5 {[%clk
0:00:01]} 46. Ke4 {[%clk 0:00:23.2]} 46... Bxc3 {[%clk 0:00:01.3]} 47. bxc3
{[%clk 0:00:22.4]} 47... Rb1 {[%clk 0:00:01.4]} 48. Kd4 {[%clk 0:00:20.5]} 48...
Ra1 {[%clk 0:00:01.5]} 49. Kxc4 {[%clk 0:00:19]} 49... Rxa4+ {[%clk 0:00:02.2]}
50. Kb5 {[%clk 0:00:19.5]} 50... Rh4 {[%clk 0:00:02.8]} 51. c4 {[%clk 0:00:19]}
51... Kd7 {[%clk 0:00:02.7]} 52. Rc3 {[%clk 0:00:13.9]} 52... Kc7 {[%clk
0:00:02]} 53. Kxa5 {[%clk 0:00:13.9]} 53... Kc6 {[%clk 0:00:02.6]} 54. Kb4
{[%clk 0:00:14.2]} 54... h5 {[%clk 0:00:02.8]} 55. Rf3 {[%clk 0:00:14]} 55...
Re4 {[%clk 0:00:02.7]} 56. Rf6+ {[%clk 0:00:13.7]} 56... Kc7 {[%clk 0:00:03.4]}
57. Rf5 {[%clk 0:00:14]} 57... h4 {[%clk 0:00:03.2]} 58. Rh5 {[%clk 0:00:13.9]}
58... Kc6 {[%clk 0:00:03.4]} 59. Rh6+ {[%clk 0:00:13.8]} 59... Kc7 {[%clk
0:00:03.8]} 60. Kb5 {[%clk 0:00:14.4]} 60... Re5+ {[%clk 0:00:02.8]} 61. c5
{[%clk 0:00:14.7]} 61... Re4 {[%clk 0:00:03.6]} 62. Rh7+ {[%clk 0:00:14.9]}
62... Kc8 {[%clk 0:00:03.9]} 63. Kb6 {[%clk 0:00:15.4]} 63... Rb4+ {[%clk
0:00:03.6]} 64. Kc6 {[%clk 0:00:15.5]} 64... Kd8 {[%clk 0:00:04.3]} 65. Rh8+
{[%clk 0:00:14.8]} 65... Ke7 {[%clk 0:00:05]} 66. Kc7 {[%clk 0:00:14.9]} 66...
Kf6 {[%clk 0:00:05.7]} 67. c6 {[%clk 0:00:14.9]} 67... Kg5 {[%clk 0:00:05.9]}
68. Kd6 {[%clk 0:00:14.9]} 68... Rd4+ {[%clk 0:00:06.4]} 69. Kc5 {[%clk
0:00:15.3]} 69... Rd2 {[%clk 0:00:07]} 70. c7 {[%clk 0:00:15.7]} 70... Rc2+
{[%clk 0:00:07.7]} 71. Kd6 {[%clk 0:00:14.9]} 71... Kf4 {[%clk 0:00:08]} 72.
c8=Q {[%clk 0:00:13.8]} 72... Rxc8 {[%clk 0:00:08.6]} 73. Rxc8 {[%clk 0:00:14]}
73... Kg3 {[%clk 0:00:09.5]} 74. Rc3+ {[%clk 0:00:14.5]} 74... Kh2 {[%clk
0:00:09.5]} 75. Ke5 {[%clk 0:00:14.7]} 1-0